[Event "*** SCC Grand Prix: Titled Tuesday Blitz"]
[Site "Chess.com"]
[Date "2020.06.02"]
[Round "1"]
[White "Misticpikachu"]
[Black "Mr_Sinigami"]
[Result "0-1"]
[WhiteElo "2248"]
[BlackElo "2588"]
[TimeControl "180+1"]
[EndTime "10:08:20 PDT"]
[Termination "Mr_Sinigami won by checkmate"]

1. c4 {[%clk 0:03:00.9]} 1... Nf6 {[%clk 0:02:56.6]} 2. Nc3 {[%clk 0:03:00.6]}
2... g6 {[%clk 0:02:55.1]} 3. e4 {[%clk 0:03:01]} 3... d6 {[%clk 0:02:54.5]} 4.
d4 {[%clk 0:03:01.2]} 4... Bg7 {[%clk 0:02:50.4]} 5. h3 {[%clk 0:03:01.1]} 5...
O-O {[%clk 0:02:46.5]} 6. Be3 {[%clk 0:03:01.3]} 6... e5 {[%clk 0:02:45]} 7. d5
{[%clk 0:03:01.3]} 7... a5 {[%clk 0:02:44.4]} 8. g4 {[%clk 0:03:00.5]} 8... Na6
{[%clk 0:02:43.9]} 9. Nge2 {[%clk 0:03:00.4]} 9... h5 {[%clk 0:02:38]} 10. gxh5
{[%clk 0:02:34.6]} 10... Nxh5 {[%clk 0:02:36.1]} 11. Qd2 {[%clk 0:02:34.2]}
11... f5 {[%clk 0:02:28]} 12. exf5 {[%clk 0:02:21.3]} 12... Bxf5 {[%clk
0:02:24.9]} 13. Ng3 {[%clk 0:02:14.3]} 13... Nxg3 {[%clk 0:02:14.4]} 14. fxg3
{[%clk 0:02:15.2]} 14... Nb4 {[%clk 0:02:11.2]} 15. Rc1 {[%clk 0:02:08.7]} 15...
Bd7 {[%clk 0:01:48.7]} 16. a3 {[%clk 0:01:57.5]} 16... Na6 {[%clk 0:01:47.6]}
17. Bd3 {[%clk 0:01:54.8]} 17... Nc5 {[%clk 0:01:33.9]} 18. Bxg6 {[%clk
0:00:46]} 18... Nb3 {[%clk 0:01:31.9]} 19. Qd1 {[%clk 0:00:45.8]} 19... Nxc1
{[%clk 0:01:28.6]} 20. Qh5 {[%clk 0:00:44.1]} 20... Rf6 {[%clk 0:00:53.6]} 21.
Bxc1 {[%clk 0:00:43.6]} 21... Rxg6 {[%clk 0:00:41.2]} 22. Qxg6 {[%clk
0:00:44.5]} 22... Qe8 {[%clk 0:00:32.4]} 23. Qxe8+ {[%clk 0:00:41.8]} 23... Rxe8
{[%clk 0:00:31.4]} 24. g4 {[%clk 0:00:38.7]} 24... e4 {[%clk 0:00:31.3]} 25. Nd1
{[%clk 0:00:38.9]} 25... e3 {[%clk 0:00:30.1]} 26. Nxe3 {[%clk 0:00:24]} 26...
b5 {[%clk 0:00:29.7]} 27. Kd2 {[%clk 0:00:15]} 27... Bh6 {[%clk 0:00:27.5]} 28.
Kd3 {[%clk 0:00:15.3]} 28... Bxe3 {[%clk 0:00:26.1]} 29. Bxe3 {[%clk 0:00:15.7]}
29... bxc4+ {[%clk 0:00:26.5]} 30. Kd4 {[%clk 0:00:14]} 30... c5+ {[%clk
0:00:25.5]} 31. dxc6 {[%clk 0:00:13.9]} 31... Bxc6 {[%clk 0:00:25.5]} 32. Re1
{[%clk 0:00:10.4]} 32... Re4+ {[%clk 0:00:25]} 33. Kc3 {[%clk 0:00:10.5]} 33...
d5 {[%clk 0:00:24.9]} 34. Bf2 {[%clk 0:00:06.5]} 34... Rf4 {[%clk 0:00:22.5]}
35. Bg3 {[%clk 0:00:06.5]} 35... Rf3+ {[%clk 0:00:22.1]} 36. Kd4 {[%clk
0:00:07.2]} 36... Rxg3 {[%clk 0:00:22.1]} 37. Kc5 {[%clk 0:00:07.7]} 37... Bb7
{[%clk 0:00:19.5]} 38. Re7 {[%clk 0:00:07.4]} 38... Rb3 {[%clk 0:00:18.7]} 39.
h4 {[%clk 0:00:04.5]} 39... Rxb2 {[%clk 0:00:17.7]} 40. Kd4 {[%clk 0:00:04.1]}
40... Rd2+ {[%clk 0:00:10.6]} 41. Kc3 {[%clk 0:00:02.6]} 41... Rd3+ {[%clk
0:00:10.3]} 42. Kc2 {[%clk 0:00:03.5]} 42... Bc6 {[%clk 0:00:10.1]} 43. h5
{[%clk 0:00:03.8]} 43... Ba4+ {[%clk 0:00:09.7]} 44. Kb2 {[%clk 0:00:03.3]}
44... c3+ {[%clk 0:00:09.7]} 45. Kb1 {[%clk 0:00:02.6]} 45... Rd1+ {[%clk
0:00:09]} 46. Ka2 {[%clk 0:00:03.1]} 46... c2 {[%clk 0:00:08.3]} 47. Rc7 {[%clk
0:00:03.6]} 47... c1=Q {[%clk 0:00:08]} 48. Rxc1 {[%clk 0:00:03.6]} 48... Rxc1
{[%clk 0:00:07.7]} 49. Kb2 {[%clk 0:00:03.8]} 49... Rc2+ {[%clk 0:00:07.5]} 50.
Kb1 {[%clk 0:00:03.3]} 50... d4 {[%clk 0:00:07.5]} 51. g5 {[%clk 0:00:03.5]}
51... d3 {[%clk 0:00:07.5]} 52. h6 {[%clk 0:00:03.9]} 52... d2 {[%clk
0:00:08.4]} 53. h7+ {[%clk 0:00:03.6]} 53... Kh8 {[%clk 0:00:08]} 54. g6 {[%clk
0:00:04.5]} 54... d1=Q# {[%clk 0:00:07.7]} 0-1

[Event "*** SCC Grand Prix: Titled Tuesday Blitz"]
[Site "Chess.com"]
[Date "2020.06.02"]
[Round "1"]
[White "Pudor"]
[Black "Igrok3069"]
[Result "0-1"]
[WhiteElo "2390"]
[BlackElo "2767"]
[TimeControl "180+1"]
[EndTime "10:08:21 PDT"]
[Termination "Igrok3069 won by resignation"]

1. d4 {[%clk 0:03:00.1]} 1... d5 {[%clk 0:02:59.4]} 2. c4 {[%clk 0:02:58]} 2...
c6 {[%clk 0:03:00.3]} 3. Nf3 {[%clk 0:02:55.3]} 3... Nf6 {[%clk 0:03:00.4]} 4.
Nc3 {[%clk 0:02:54.9]} 4... e6 {[%clk 0:03:00.5]} 5. Bg5 {[%clk 0:02:53.2]} 5...
Nbd7 {[%clk 0:03:00]} 6. e3 {[%clk 0:02:52.1]} 6... Qa5 {[%clk 0:02:59.9]} 7.
Nd2 {[%clk 0:02:51]} 7... Bb4 {[%clk 0:02:57.5]} 8. Qc2 {[%clk 0:02:50.3]} 8...
O-O {[%clk 0:02:56.8]} 9. Be2 {[%clk 0:02:46.8]} 9... c5 {[%clk 0:02:56.4]} 10.
dxc5 {[%clk 0:02:41.7]} 10... dxc4 {[%clk 0:02:54.9]} 11. Bxf6 {[%clk 0:02:24]}
11... Nxf6 {[%clk 0:02:54.1]} 12. O-O {[%clk 0:02:23.1]} 12... Qxc5 {[%clk
0:02:43.9]} 13. Nce4 {[%clk 0:02:12.8]} 13... Nxe4 {[%clk 0:02:21.3]} 14. Nxe4
{[%clk 0:02:13.7]} 14... Qe5 {[%clk 0:02:16]} 15. Qxc4 {[%clk 0:02:07.7]} 15...
Be7 {[%clk 0:02:15.7]} 16. Nc3 {[%clk 0:02:00.5]} 16... Bd7 {[%clk 0:02:03.2]}
17. Rfd1 {[%clk 0:01:58.4]} 17... Bc6 {[%clk 0:02:00]} 18. Rd4 {[%clk
0:01:58.4]} 18... Rac8 {[%clk 0:01:59.2]} 19. Qd3 {[%clk 0:01:49]} 19... Rfd8
{[%clk 0:01:49.4]} 20. Rd1 {[%clk 0:01:46.3]} 20... Rxd4 {[%clk 0:01:49.3]} 21.
Qxd4 {[%clk 0:01:47.2]} 21... Qxd4 {[%clk 0:01:48.9]} 22. Rxd4 {[%clk
0:01:46.2]} 22... Bf6 {[%clk 0:01:48.7]} 23. Rc4 {[%clk 0:01:43.6]} 23... Rd8
{[%clk 0:01:44.6]} 24. Bf3 {[%clk 0:01:31.5]} 24... Bxf3 {[%clk 0:01:05.1]} 25.
gxf3 {[%clk 0:01:32.4]} 25... Kf8 {[%clk 0:01:04.9]} 26. Rc7 {[%clk 0:01:27.5]}
26... Rb8 {[%clk 0:01:04.6]} 27. b3 {[%clk 0:01:21.1]} 27... Be5 {[%clk
0:01:01.7]} 28. Rc4 {[%clk 0:01:11.2]} 28... Ke7 {[%clk 0:00:52.3]} 29. f4
{[%clk 0:01:06.6]} 29... Bd6 {[%clk 0:00:45.5]} 30. Ne4 {[%clk 0:01:06.2]} 30...
Rd8 {[%clk 0:00:37.2]} 31. Nxd6 {[%clk 0:01:04]} 31... Rxd6 {[%clk 0:00:37.3]}
32. Rc7+ {[%clk 0:01:03.2]} 32... Rd7 {[%clk 0:00:37.5]} 33. Rc2 {[%clk
0:00:52.4]} 33... Rd1+ {[%clk 0:00:37.2]} 34. Kg2 {[%clk 0:00:52.6]} 34... Kd7
{[%clk 0:00:38]} 35. Kf3 {[%clk 0:00:51.6]} 35... g6 {[%clk 0:00:36.3]} 36. Rc4
{[%clk 0:00:48]} 36... Ra1 {[%clk 0:00:33.8]} 37. Rb4 {[%clk 0:00:45]} 37... b6
{[%clk 0:00:33.1]} 38. Rd4+ {[%clk 0:00:42.3]} 38... Kc6 {[%clk 0:00:33]} 39.
Rc4+ {[%clk 0:00:42.1]} 39... Kd6 {[%clk 0:00:32.5]} 40. Rd4+ {[%clk 0:00:42]}
40... Kc6 {[%clk 0:00:30.9]} 41. Rc4+ {[%clk 0:00:42.2]} 41... Kb7 {[%clk
0:00:31]} 42. Rd4 {[%clk 0:00:26.5]} 42... Rxa2 {[%clk 0:00:30.2]} 43. Rd7+
{[%clk 0:00:26.7]} 43... Kc6 {[%clk 0:00:30.9]} 44. Rxf7 {[%clk 0:00:26.7]}
44... a5 {[%clk 0:00:31.5]} 45. Rxh7 {[%clk 0:00:20.4]} 45... Rb2 {[%clk
0:00:31.3]} 46. Rg7 {[%clk 0:00:18.8]} 46... Rxb3 {[%clk 0:00:31.4]} 47. Rxg6
{[%clk 0:00:19.2]} 47... Kd7 {[%clk 0:00:25.6]} 48. Rg7+ {[%clk 0:00:19.2]}
48... Kd6 {[%clk 0:00:24.8]} 49. h4 {[%clk 0:00:19.6]} 49... Rb1 {[%clk
0:00:24.5]} 50. h5 {[%clk 0:00:19.6]} 50... Rh1 {[%clk 0:00:24.4]} 51. Rb7
{[%clk 0:00:19.5]} 51... Kc6 {[%clk 0:00:23.8]} 52. Re7 {[%clk 0:00:19.4]} 52...
a4 {[%clk 0:00:22.5]} 53. Rxe6+ {[%clk 0:00:19.7]} 53... Kc5 {[%clk 0:00:19.7]}
54. Re8 {[%clk 0:00:18.6]} 54... Rxh5 {[%clk 0:00:16.3]} 55. Ra8 {[%clk
0:00:19]} 55... b5 {[%clk 0:00:16.2]} 56. e4 {[%clk 0:00:18.6]} 56... a3 {[%clk
0:00:13.2]} 57. f5 {[%clk 0:00:18.9]} 57... b4 {[%clk 0:00:12.9]} 58. f6 {[%clk
0:00:19.1]} 58... Kd6 {[%clk 0:00:11.5]} 59. Kg4 {[%clk 0:00:18.3]} 59... Rh7
{[%clk 0:00:09.6]} 60. Kg5 {[%clk 0:00:18.2]} 60... Rb7 {[%clk 0:00:09]} 61. Kg6
{[%clk 0:00:17.6]} 61... b3 {[%clk 0:00:09.5]} 62. f7 {[%clk 0:00:17.8]} 62...
Rxf7 {[%clk 0:00:08.3]} 63. Kxf7 {[%clk 0:00:18.7]} 63... b2 {[%clk 0:00:08]}
64. Rxa3 {[%clk 0:00:19.1]} 64... b1=Q {[%clk 0:00:08]} 65. Rd3+ {[%clk
0:00:18.9]} 65... Qxd3 {[%clk 0:00:07.4]} 0-1

[Event "*** SCC Grand Prix: Titled Tuesday Blitz"]
[Site "Chess.com"]
[Date "2020.06.02"]
[Round "1"]
[White "ZverevLev"]
[Black "stoleriu"]
[Result "1-0"]
[WhiteElo "2221"]
[BlackElo "2539"]
[TimeControl "180+1"]
[EndTime "10:08:21 PDT"]
[Termination "ZverevLev won by resignation"]

1. e4 {[%clk 0:03:00.1]} 1... e6 {[%clk 0:02:59.8]} 2. d4 {[%clk 0:02:56.6]}
2... d5 {[%clk 0:03:00.7]} 3. Nc3 {[%clk 0:02:48.2]} 3... Bb4 {[%clk 0:02:59.7]}
4. e5 {[%clk 0:02:45]} 4... c5 {[%clk 0:02:58.3]} 5. a3 {[%clk 0:02:42.4]} 5...
Bxc3+ {[%clk 0:02:56.2]} 6. bxc3 {[%clk 0:02:43.3]} 6... Qc7 {[%clk 0:02:57]} 7.
Qg4 {[%clk 0:02:34.6]} 7... f6 {[%clk 0:02:56.3]} 8. Qg3 {[%clk 0:02:22.1]} 8...
Qf7 {[%clk 0:02:54]} 9. Nf3 {[%clk 0:02:19.3]} 9... c4 {[%clk 0:02:51.7]} 10.
Be2 {[%clk 0:02:14.1]} 10... Nc6 {[%clk 0:02:49.3]} 11. O-O {[%clk 0:02:11]}
11... Nge7 {[%clk 0:02:44.1]} 12. a4 {[%clk 0:01:56.5]} 12... Nf5 {[%clk
0:02:36.8]} 13. Qh3 {[%clk 0:01:45.7]} 13... Bd7 {[%clk 0:02:36.5]} 14. Ba3
{[%clk 0:01:44.3]} 14... O-O-O {[%clk 0:02:35.2]} 15. a5 {[%clk 0:01:34.8]}
15... a6 {[%clk 0:02:30.5]} 16. Rfb1 {[%clk 0:01:30.4]} 16... h5 {[%clk
0:02:23.3]} 17. Bc5 {[%clk 0:01:26.2]} 17... Rdg8 {[%clk 0:02:19.9]} 18. Nd2
{[%clk 0:01:22.1]} 18... fxe5 {[%clk 0:02:11]} 19. Bxc4 {[%clk 0:01:17.7]} 19...
dxc4 {[%clk 0:02:05.4]} 20. Nxc4 {[%clk 0:01:18.6]} 20... g5 {[%clk 0:01:53.1]}
21. dxe5 {[%clk 0:01:15.8]} 21... Nce7 {[%clk 0:01:30.7]} 22. Nb6+ {[%clk
0:00:59.4]} 22... Kc7 {[%clk 0:01:24.4]} 23. Nxd7 {[%clk 0:00:58]} 23... Nc6
{[%clk 0:00:59.3]} 24. Nf6 {[%clk 0:00:49.8]} 24... Rd8 {[%clk 0:00:52.6]} 25.
Bb6+ {[%clk 0:00:44.7]} 25... Kc8 {[%clk 0:00:53]} 26. Bxd8 {[%clk 0:00:43.9]}
26... Rxd8 {[%clk 0:00:53.6]} 27. Qf3 {[%clk 0:00:41]} 27... Nxe5 {[%clk
0:00:43.1]} 28. Qe4 {[%clk 0:00:39.5]} 28... Nc6 {[%clk 0:00:42.3]} 29. Rb6
{[%clk 0:00:29.7]} 29... Kc7 {[%clk 0:00:22.3]} 30. Rab1 {[%clk 0:00:26]} 30...
Nd6 {[%clk 0:00:22]} 31. Qf3 {[%clk 0:00:23.4]} 31... Rf8 {[%clk 0:00:15.4]} 32.
Qg3 {[%clk 0:00:20]} 32... e5 {[%clk 0:00:11.9]} 33. Ne4 {[%clk 0:00:15.1]}
33... Nxe4 {[%clk 0:00:07]} 34. Rxb7+ {[%clk 0:00:14.3]} 34... Kc8 {[%clk
0:00:02.9]} 35. Rxf7 {[%clk 0:00:14.6]} 35... Rxf7 {[%clk 0:00:03]} 36. Qe3
{[%clk 0:00:13.8]} 36... Nd6 {[%clk 0:00:02.6]} 37. Qb6 {[%clk 0:00:11.5]} 37...
Rc7 {[%clk 0:00:02.3]} 38. Qxa6+ {[%clk 0:00:10.6]} 38... Kd7 {[%clk 0:00:02.9]}
39. Qd3 {[%clk 0:00:10.3]} 39... Ke7 {[%clk 0:00:02]} 40. Qh7+ {[%clk
0:00:09.2]} 40... Kd8 {[%clk 0:00:02.5]} 41. Qg8+ {[%clk 0:00:09.2]} 41... Kd7
{[%clk 0:00:02.8]} 42. Qxg5 {[%clk 0:00:08.7]} 42... Ne7 {[%clk 0:00:02.7]} 43.
Qxe5 {[%clk 0:00:07.9]} 43... Rc6 {[%clk 0:00:02.2]} 44. Qxh5 {[%clk 0:00:07.6]}
44... Rxc3 {[%clk 0:00:02.3]} 45. Re1 {[%clk 0:00:06.9]} 45... Rxc2 {[%clk
0:00:02.4]} 46. Qe5 {[%clk 0:00:06.7]} 46... Nc6 {[%clk 0:00:02.1]} 47. Qg7+
{[%clk 0:00:06.5]} 47... Kc8 {[%clk 0:00:01.7]} 48. Qf8+ {[%clk 0:00:06.7]}
48... Kc7 {[%clk 0:00:02.3]} 49. a6 {[%clk 0:00:06.5]} 49... Ra2 {[%clk
0:00:02.2]} 50. h4 {[%clk 0:00:04.3]} 50... Rxa6 {[%clk 0:00:02.5]} 51. h5
{[%clk 0:00:04.5]} 51... Ra5 {[%clk 0:00:02.2]} 52. h6 {[%clk 0:00:04.4]} 52...
Rh5 {[%clk 0:00:02.7]} 53. Qg7+ {[%clk 0:00:04.2]} 53... Kc8 {[%clk 0:00:02.9]}
54. h7 {[%clk 0:00:05]} 54... Nf5 {[%clk 0:00:01.3]} 1-0

[Event "*** SCC Grand Prix: Titled Tuesday Blitz"]
[Site "Chess.com"]
[Date "2020.06.02"]
[Round "1"]
[White "DiamondCrusher22"]
[Black "AttilaTurzo"]
[Result "0-1"]
[WhiteElo "1965"]
[BlackElo "2469"]
[TimeControl "180+1"]
[EndTime "10:08:22 PDT"]
[Termination "AttilaTurzo won by checkmate"]

1. e4 {[%clk 0:03:00.9]} 1... c5 {[%clk 0:02:57.1]} 2. Nf3 {[%clk 0:03:00.7]}
2... d6 {[%clk 0:02:57.1]} 3. c3 {[%clk 0:02:58]} 3... Nf6 {[%clk 0:02:56.1]} 4.
Be2 {[%clk 0:02:57.4]} 4... Nc6 {[%clk 0:02:54.7]} 5. d4 {[%clk 0:02:55.3]} 5...
g6 {[%clk 0:02:46]} 6. O-O {[%clk 0:02:25.9]} 6... Bg7 {[%clk 0:02:40.3]} 7. d5
{[%clk 0:02:15.9]} 7... Ne5 {[%clk 0:02:34.9]} 8. Nxe5 {[%clk 0:02:13.1]} 8...
dxe5 {[%clk 0:02:35.8]} 9. Be3 {[%clk 0:02:11.4]} 9... b6 {[%clk 0:02:32.4]} 10.
f4 {[%clk 0:02:03.4]} 10... exf4 {[%clk 0:02:30.9]} 11. Bxf4 {[%clk 0:02:00.8]}
11... O-O {[%clk 0:02:30.6]} 12. Bf3 {[%clk 0:02:00.7]} 12... Bb7 {[%clk
0:02:29.9]} 13. c4 {[%clk 0:01:43.2]} 13... Ne8 {[%clk 0:02:17.7]} 14. Nc3
{[%clk 0:01:37.4]} 14... e5 {[%clk 0:02:14.7]} 15. Be3 {[%clk 0:00:53.9]} 15...
Nd6 {[%clk 0:02:13.9]} 16. Qd3 {[%clk 0:00:47.6]} 16... f5 {[%clk 0:02:09.4]}
17. Kh1 {[%clk 0:00:45.5]} 17... Bc8 {[%clk 0:02:09.2]} 18. Rad1 {[%clk
0:00:33.7]} 18... Qh4 {[%clk 0:01:53.3]} 19. Bf2 {[%clk 0:00:25.6]} 19... Qe7
{[%clk 0:01:49.7]} 20. Rfe1 {[%clk 0:00:22.7]} 20... Bd7 {[%clk 0:01:45.7]} 21.
exf5 {[%clk 0:00:21.4]} 21... gxf5 {[%clk 0:01:45]} 22. Bg3 {[%clk 0:00:19.3]}
22... e4 {[%clk 0:01:43.2]} 23. Qd2 {[%clk 0:00:17.2]} 23... Rae8 {[%clk
0:01:32.3]} 24. Bh5 {[%clk 0:00:17]} 24... Rd8 {[%clk 0:01:28.7]} 25. Qf4 {[%clk
0:00:16.8]} 25... Nf7 {[%clk 0:01:25.5]} 26. Nb5 {[%clk 0:00:13]} 26... Be5
{[%clk 0:01:22.6]} 27. Qh4 {[%clk 0:00:08.3]} 27... Qxh4 {[%clk 0:01:04.3]} 28.
Bxh4 {[%clk 0:00:07.8]} 28... Ra8 {[%clk 0:01:03.3]} 29. Be7 {[%clk 0:00:07.9]}
29... Rfe8 {[%clk 0:01:01.7]} 30. d6 {[%clk 0:00:08.4]} 30... Bxb2 {[%clk
0:00:38.1]} 31. Nc7 {[%clk 0:00:08.2]} 31... Rac8 {[%clk 0:00:36.7]} 32. Nxe8
{[%clk 0:00:07.6]} 32... Rxe8 {[%clk 0:00:37.6]} 33. Re3 {[%clk 0:00:07.4]}
33... Be5 {[%clk 0:00:34.1]} 34. g4 {[%clk 0:00:06.3]} 34... f4 {[%clk
0:00:24.2]} 35. Rh3 {[%clk 0:00:03.7]} 35... Kg7 {[%clk 0:00:17.1]} 36. Bxf7
{[%clk 0:00:03.2]} 36... Kxf7 {[%clk 0:00:16.3]} 37. Rxh7+ {[%clk 0:00:03.8]}
37... Kg6 {[%clk 0:00:16.8]} 38. Rh4 {[%clk 0:00:02.5]} 38... f3 {[%clk
0:00:15.5]} 39. Kg1 {[%clk 0:00:02.6]} 39... Bd4+ {[%clk 0:00:15.4]} 40. Kf1
{[%clk 0:00:02.9]} 40... Bc6 {[%clk 0:00:15.9]} 41. g5 {[%clk 0:00:02.2]} 41...
e3 {[%clk 0:00:15.5]} 42. Rh6+ {[%clk 0:00:02.7]} 42... Kg7 {[%clk 0:00:15.1]}
43. Rd3 {[%clk 0:00:02.7]} 43... e2+ {[%clk 0:00:14.5]} 44. Ke1 {[%clk
0:00:02.9]} 44... Rg8 {[%clk 0:00:13.3]} 45. Bf6+ {[%clk 0:00:02.9]} 45... Bxf6
{[%clk 0:00:12.4]} 46. Rxf6 {[%clk 0:00:03.8]} 46... Rh8 {[%clk 0:00:11.7]} 47.
d7 {[%clk 0:00:04.1]} 47... Rxh2 {[%clk 0:00:10.8]} 48. Rf7+ {[%clk 0:00:02.8]}
48... Kxf7 {[%clk 0:00:10.2]} 49. Rxf3+ {[%clk 0:00:02.2]} 49... Bxf3 {[%clk
0:00:08.4]} 50. d8=Q {[%clk 0:00:01.4]} 50... Rh1+ {[%clk 0:00:08.7]} 51. Kf2
{[%clk 0:00:01.2]} 51... e1=Q+ {[%clk 0:00:06.9]} 52. Kxf3 {[%clk 0:00:02.1]}
52... Rf1+ {[%clk 0:00:06.7]} 53. Kg4 {[%clk 0:00:02.3]} 53... Qe4+ {[%clk
0:00:06.9]} 54. Kh5 {[%clk 0:00:02.4]} 54... Rh1# {[%clk 0:00:07]} 0-1

[Event "*** SCC Grand Prix: Titled Tuesday Blitz"]
[Site "Chess.com"]
[Date "2020.06.02"]
[Round "1"]
[White "Trickov"]
[Black "EvgenyRomanov"]
[Result "0-1"]
[WhiteElo "2331"]
[BlackElo "2663"]
[TimeControl "180+1"]
[EndTime "10:08:24 PDT"]
[Termination "EvgenyRomanov won on time"]

1. d4 {[%clk 0:02:57.5]} 1... Nf6 {[%clk 0:02:56.2]} 2. Nf3 {[%clk 0:02:55.9]}
2... d5 {[%clk 0:02:54.5]} 3. c4 {[%clk 0:02:55.2]} 3... e6 {[%clk 0:02:55.4]}
4. g3 {[%clk 0:02:54.6]} 4... Bb4+ {[%clk 0:02:53]} 5. Bd2 {[%clk 0:02:54]} 5...
Bd6 {[%clk 0:02:52.7]} 6. Bg2 {[%clk 0:02:54.4]} 6... c6 {[%clk 0:02:52.9]} 7.
b3 {[%clk 0:02:52.7]} 7... Ne4 {[%clk 0:02:49.2]} 8. O-O {[%clk 0:02:51.5]} 8...
Nd7 {[%clk 0:02:48]} 9. Nc3 {[%clk 0:02:51.5]} 9... f5 {[%clk 0:02:47.7]} 10.
Qc2 {[%clk 0:02:51.5]} 10... O-O {[%clk 0:02:47.2]} 11. Bf4 {[%clk 0:02:51.6]}
11... Be7 {[%clk 0:02:36.6]} 12. Ne5 {[%clk 0:02:51.1]} 12... Qa5 {[%clk
0:02:27.1]} 13. Nxe4 {[%clk 0:02:37.6]} 13... fxe4 {[%clk 0:02:25.7]} 14. Nxd7
{[%clk 0:02:35.7]} 14... Bxd7 {[%clk 0:02:25.3]} 15. Be5 {[%clk 0:02:35.7]}
15... Be8 {[%clk 0:02:21.1]} 16. f3 {[%clk 0:02:34.6]} 16... exf3 {[%clk
0:02:19.9]} 17. exf3 {[%clk 0:02:33.3]} 17... Bg6 {[%clk 0:02:17.6]} 18. Qe2
{[%clk 0:02:33.3]} 18... Rae8 {[%clk 0:02:15.4]} 19. c5 {[%clk 0:02:19.9]} 19...
b6 {[%clk 0:02:03.3]} 20. cxb6 {[%clk 0:02:19.1]} 20... axb6 {[%clk 0:02:02.3]}
21. Bh3 {[%clk 0:02:13]} 21... Ba3 {[%clk 0:01:54.9]} 22. Rad1 {[%clk 0:01:56]}
22... Qc3 {[%clk 0:01:51.9]} 23. f4 {[%clk 0:01:48.6]} 23... Be4 {[%clk
0:01:44.9]} 24. Bg2 {[%clk 0:01:40.9]} 24... Bg6 {[%clk 0:01:41.9]} 25. Qd2
{[%clk 0:01:38.6]} 25... Qxd2 {[%clk 0:01:36.7]} 26. Rxd2 {[%clk 0:01:38.6]}
26... c5 {[%clk 0:01:31.1]} 27. Bh3 {[%clk 0:01:12.6]} 27... Be4 {[%clk
0:01:23.1]} 28. Bg2 {[%clk 0:01:05.6]} 28... Bf5 {[%clk 0:01:23.2]} 29. h3
{[%clk 0:01:04.8]} 29... Bb4 {[%clk 0:01:02.2]} 30. Rdd1 {[%clk 0:00:59.1]}
30... h5 {[%clk 0:00:59.8]} 31. Kh2 {[%clk 0:00:56.5]} 31... Bc3 {[%clk
0:00:53.3]} 32. Bf3 {[%clk 0:00:51.7]} 32... Bg6 {[%clk 0:00:51.7]} 33. g4
{[%clk 0:00:39.7]} 33... hxg4 {[%clk 0:00:52.6]} 34. hxg4 {[%clk 0:00:39.5]}
34... Ra8 {[%clk 0:00:51.5]} 35. Rf2 {[%clk 0:00:37.6]} 35... Rfd8 {[%clk
0:00:31.9]} 36. Kg3 {[%clk 0:00:24.4]} 36... Rac8 {[%clk 0:00:25.7]} 37. a4
{[%clk 0:00:20.4]} 37... cxd4 {[%clk 0:00:23.9]} 38. Bxd4 {[%clk 0:00:19.8]}
38... Bxd4 {[%clk 0:00:24.4]} 39. Rxd4 {[%clk 0:00:19.8]} 39... Rc3 {[%clk
0:00:25.2]} 40. b4 {[%clk 0:00:19.2]} 40... Be4 {[%clk 0:00:24.4]} 41. Kg2
{[%clk 0:00:17.8]} 41... Rxf3 {[%clk 0:00:24.2]} 42. Rxf3 {[%clk 0:00:17.4]}
42... Rc8 {[%clk 0:00:24.9]} 43. Kg3 {[%clk 0:00:17.5]} 43... Bxf3 {[%clk
0:00:24.3]} 44. Kxf3 {[%clk 0:00:17.6]} 44... Rc3+ {[%clk 0:00:24.9]} 45. Kf2
{[%clk 0:00:16.9]} 45... Ra3 {[%clk 0:00:25.8]} 46. a5 {[%clk 0:00:16]} 46...
bxa5 {[%clk 0:00:26]} 47. bxa5 {[%clk 0:00:16.2]} 47... Rxa5 {[%clk 0:00:26.2]}
48. f5 {[%clk 0:00:16.3]} 48... exf5 {[%clk 0:00:25.7]} 49. gxf5 {[%clk
0:00:15.8]} 49... Kf7 {[%clk 0:00:26.4]} 50. Kf3 {[%clk 0:00:16.4]} 50... Kf6
{[%clk 0:00:25]} 51. Kf4 {[%clk 0:00:16.5]} 51... Rc5 {[%clk 0:00:25.1]} 52. Ke3
{[%clk 0:00:07.5]} 52... Ke5 {[%clk 0:00:24]} 53. Rg4 {[%clk 0:00:06.8]} 53...
Rc3+ {[%clk 0:00:22.4]} 54. Kd2 {[%clk 0:00:06.8]} 54... Rc7 {[%clk 0:00:22.6]}
55. Rg5 {[%clk 0:00:05.6]} 55... Kf6 {[%clk 0:00:21.7]} 56. Rh5 {[%clk
0:00:05.7]} 56... Re7 {[%clk 0:00:21.2]} 57. Kd3 {[%clk 0:00:05.6]} 57... Re5
{[%clk 0:00:21.2]} 58. Kd4 {[%clk 0:00:04.8]} 58... Rxf5 {[%clk 0:00:20.9]} 59.
Rh8 {[%clk 0:00:04.7]} 59... Kg5 {[%clk 0:00:19.6]} 60. Rg8 {[%clk 0:00:04.4]}
60... g6 {[%clk 0:00:20.2]} 61. Re8 {[%clk 0:00:03.7]} 61... Kf4 {[%clk
0:00:19.7]} 62. Re1 {[%clk 0:00:02.4]} 62... g5 {[%clk 0:00:18.9]} 63. Rf1+
{[%clk 0:00:02.6]} 63... Kg4 {[%clk 0:00:19.1]} 64. Rg1+ {[%clk 0:00:02.1]}
64... Kh3 {[%clk 0:00:18.7]} 0-1